bitfinex-derivatives/quotes_SOLF0:USTF0_20240920
["timestamp","ask_amount","ask_price","bid_price","bid_amount"]
[1726808658969,16.18,148.55,148.45,3.9572]
[1726808658970,6.7249,148.68,148.53,16.18]
[1726808659170,16.18,148.62,148.53,16.18]
[1726808659367,3.39677368,148.62,148.55,16.18]
[1726808659576,18.1372,148.64,148.55,16.18]
[1726808659778,1.9572,148.64,148.55,16.18]
[1726808660070,21.48513558,148.64,148.55,16.18]
[1726808660270,3.3646,148.59,148.55,16.18]
[1726808660472,21.48513558,148.64,148.55,16.18]
[1726808661577,3.3648,148.58,148.55,16.18]
[1726808664180,16.18,148.63,148.53,16.18]
[1726808664583,5.30513558,148.64,148.52,1.9911]
[1726808664584,16.18,148.58,148.52,1.9911]
[1726808665081,3.3658,148.53,148.52,1.9911]
[1726808666073,16.18,148.6,148.52,1.9911]
[1726808666274,5.30513558,148.64,148.53,19.5457]
[1726808666475,5.30513558,148.64,148.55,16.18]
[1726808666778,5.30513558,148.64,148.57,16.18]
[1726808667475,3.34793558,148.64,148.59,16.18]
[1726808667774,2.2245,148.66,148.59,16.18]
[1726808668169,3.38696216,148.65,148.59,16.18]
[1726808668775,3.3641,148.61,148.59,16.18]
[1726808671574,3.38696216,148.65,148.57,16.18]
[1726808671781,16.18,148.63,148.55,16.18]
[1726808672082,3.3648,148.58,148.53,23.7148]
[1726808672575,3.3648,148.58,148.53,20.3491]
[1726808673376,3.3648,148.58,148.54,3.3655]
[1726808673779,3.39784261,148.63,148.56,16.18]
[1726808673975,18.2217,148.65,148.56,16.18]
[1726808674481,21.60440774,148.65,148.56,16.18]
[1726808674681,3.3642,148.6,148.56,19.5449]
[1726808675381,3.3642,148.6,148.56,3.3649]
[1726808675581,21.60440774,148.65,148.56,16.18]
[1726808676776,3.3642,148.6,148.56,19.545]
[1726808676981,21.60440774,148.65,148.56,16.18]
[1726808677980,21.60440774,148.65,148.56,19.545]
[1726808678782,3.38270774,148.65,148.58,16.18]
[1726808679574,3.38270774,148.65,148.58,19.5446]
[1726808679779,3.38270774,148.65,148.58,16.18]
[1726808680078,3.38270774,148.65,148.56,19.5451]
[1726808680079,16.18,148.65,148.56,19.5451]
[1726808680484,19.57257796,148.65,148.56,16.18]
[1726808680882,3.39257796,148.65,148.56,16.18]
[1726808681178,2.2245,148.66,148.58,16.18]
[1726808681383,3.3637,148.63,148.6,16.18]
[1726808681780,18.7571,148.69,148.6,16.18]
[1726808682785,3.3634,148.64,148.6,19.5442]
[1726808683888,3.3635,148.63,148.6,19.5442]
[1726808684592,3.3635,148.63,148.6,16.18]
[1726808686293,3.3635,148.63,148.6,18.648]
[1726808686887,2.5771,148.69,148.62,16.18]
[1726808687485,3.3633,148.64,148.62,16.18]
[1726808687886,3.3633,148.64,148.61,5.6977]
[1726808687887,13.74623028,148.83,148.63,16.18]
[1726808688085,16.18,148.76,148.64,2.5128]
[1726808688293,16.18,148.76,148.67,16.18]
[1726808689192,3.3614,148.73,148.67,16.18]
[1726808689494,3.36642646,148.75,148.68,2.451]
[1726808689882,3.3616,148.72,148.68,2.451]
[1726808690585,3.3611,148.74,148.7,3.3619]
[1726808690785,3.3611,148.74,148.69,16.18]
[1726808690989,3.29039285,148.75,148.69,16.18]
[1726808691191,16.18,148.78,148.69,16.18]
[1726808691382,1.03744987,148.77,148.69,16.18]
[1726808691582,17.21744987,148.76,148.69,16.18]
[1726808691787,3.34219417,148.75,148.69,16.18]
[1726808691989,3.3614,148.73,148.69,16.18]
[1726808694690,3.3614,148.73,148.69,19.5421]
[1726808695092,3.3612,148.74,148.69,19.5421]
[1726808695293,3.34219417,148.75,148.69,16.18]
[1726808695592,3.3614,148.73,148.69,16.18]
[1726808696388,19.49326616,148.75,148.68,2.451]
[1726808696593,16.18,148.74,148.68,2.451]
[1726808696892,19.50436644,148.74,148.68,2.451]
[1726808698604,3.3618,148.71,148.68,2.451]
[1726808699090,3.3615,148.72,148.68,5.8134]
[1726808699495,21.276,148.76,148.68,2.451]
[1726808699691,1.0374962,148.75,148.68,2.451]
[1726808699994,3.32761768,148.74,148.68,2.451]
[1726808700399,21.276,148.76,148.68,2.451]
[1726808700697,3.3616,148.72,148.68,5.8133]
[1726808700892,3.41114566,148.74,148.64,2.5128]
[1726808701198,16.18,148.74,148.65,16.18]
[1726808701393,19.4781359,148.74,148.65,16.18]
[1726808701595,19.4781359,148.74,148.64,2.5128]
[1726808701894,1.03764317,148.73,148.64,18.6928]
[1726808702797,3.3621,148.7,148.65,3.3629]
[1726808703294,3.3621,148.7,148.64,18.6928]
[1726808703494,3.3621,148.69,148.65,3.363]
[1726808705296,3.3621,148.69,148.66,3.3628]
[1726808705698,3.3621,148.69,148.65,3.363]
[1726808707600,3.3627,148.67,148.64,22.0559]
[1726808710203,16.18,148.72,148.63,16.18]
[1726808710503,16.18,148.7,148.63,16.18]
[1726808710709,3.3629,148.66,148.63,16.18]
[1726808710908,16.18,148.7,148.63,16.18]
[1726808711202,3.363,148.66,148.63,16.18]
[1726808713005,3.3632,148.65,148.63,16.18]
[1726808713211,3.42372057,148.69,148.63,16.18]
[1726808713507,3.3632,148.65,148.63,16.18]
[1726808713703,3.40130193,148.68,148.63,16.18]
[1726808713908,3.40130193,148.68,148.62,2.5576]
[1726808713909,10.33,148.68,148.64,10.33]
[1726808714112,3.3631,148.65,148.64,10.33]
[1726808716710,13.66501877,148.68,148.64,10.33]
[1726808716711,3.3629,148.66,148.64,10.33]
[1726808717109,3.33501877,148.68,148.63,10.33]
[1726808717308,13.693,148.66,148.63,10.33]
[1726808717909,3.363,148.66,148.63,10.33]
[1726808719411,10.33,148.64,148.5,134.58]
[1726808719614,10.33,148.62,148.55,5.0114]
[1726808719813,3.364,148.61,148.59,10.33]
[1726808720014,3.43608363,148.73,148.6,10.33]
[1726808720216,10.33,148.68,148.64,10.33]
[1726808720410,3.3626,148.67,148.64,10.33]
[1726808721315,13.7555586,148.68,148.64,10.33]
[1726808721711,13.7555586,148.68,148.55,5.0114]
[1726808721712,3.4255586,148.68,148.65,10.33]
[1726808721918,4.9562,148.72,148.67,10.33]
[1726808721919,3.33939796,148.71,148.67,10.33]
[1726808722111,3.33939796,148.71,148.55,5.0114]
[1726808722112,4.9562,148.72,148.69,10.33]
[1726808722317,11.73258852,148.72,148.69,10.33]
[1726808722712,8.37098852,148.72,148.69,10.33]
[1726808722914,3.3619,148.71,148.69,10.33]
[1726808723115,8.37098852,148.72,148.69,10.33]
[1726808723516,3.3619,148.71,148.69,10.33]
[1726808723920,3.3619,148.71,148.66,19.5228]
[1726808724419,8.37098852,148.72,148.67,3.3626]
[1726808724617,8.37098852,148.72,148.66,16.16]
[1726808724815,8.37098852,148.72,148.64,18.7661]
[1726808725217,8.37098852,148.72,148.64,22.1293]
[1726808725616,8.37098852,148.72,148.64,18.7661]
[1726808726614,3.3623,148.69,148.65,3.3629]
[1726808728316,3.362,148.7,148.66,19.5228]
[1726808728921,3.3618,148.71,148.67,3.3626]
[1726808729622,11.73248852,148.72,148.67,3.3626]
[1726808730722,3.3617,148.71,148.67,3.3626]
[1726808731211,3.362,148.7,148.66,19.5228]
[1726808731416,3.362,148.7,148.66,16.16]
[1726808731618,8.37098852,148.72,148.66,16.16]
[1726808731817,3.3618,148.71,148.67,3.3626]
[1726808738418,3.3621,148.7,148.66,3.3628]
[1726808738626,8.37098852,148.72,148.65,16.16]
[1726808739124,5.92568852,148.72,148.65,16.16]
[1726808739521,9.28728852,148.72,148.68,3.3623]
[1726808740122,3.3617,148.71,148.68,3.3623]
[1726808740926,3.3617,148.71,148.67,3.3625]
[1726808741623,3.3624,148.68,148.65,16.16]
[1726808741925,3.3624,148.68,148.64,2.6061]
[1726808741926,16.16,148.71,148.64,2.6061]
[1726808742128,18.8476,148.71,148.64,2.6061]
[1726808742322,3.3625,148.68,148.64,2.6061]
[1726808742630,3.3625,148.68,148.59,2.6582]
[1726808742631,16.16,148.68,148.59,2.6582]
[1726808742922,16.16,148.64,148.58,2.5366]
[1726808743124,16.16,148.63,148.58,2.5366]
[1726808743426,3.3636,148.63,148.58,2.5366]
[1726808744016,13.7036,148.63,148.59,10.34]
[1726808744628,10.34,148.63,148.59,10.34]
[1726808745825,3.3638,148.62,148.59,10.34]
[1726808746027,3.3638,148.62,148.58,2.5366]
[1726808746215,3.3636,148.63,148.58,2.5366]
[1726808746421,3.4263187,148.64,148.58,2.5366]
[1726808747221,3.3637,148.63,148.58,5.9011]
[1726808748230,3.3637,148.62,148.58,5.9011]
[1726808748725,3.4263187,148.64,148.58,18.6966]
[1726808749524,3.3631,148.65,148.6,16.16]
[1726808749726,4.3419,148.71,148.62,16.16]
[1726808749930,1.03789847,148.7,148.63,16.16]
[1726808750329,2.5806,148.71,148.65,3.363]
[1726808750725,3.3622,148.69,148.65,3.363]
[1726808750932,3.3622,148.69,148.64,3.3632]
[1726808751130,3.3622,148.69,148.63,16.16]
[1726808752833,3.3622,148.69,148.65,3.363]
[1726808754828,2.5806,148.71,148.66,3.3627]
[1726808755829,3.3621,148.7,148.66,3.3627]
[1726808756433,3.3621,148.69,148.66,3.3627]
[1726808756735,16.16,148.69,148.6,16.16]
[1726808756932,16.16,148.69,148.6,18.7146]
[1726808757338,3.363,148.66,148.62,3.3637]
[1726808757641,16.16,148.69,148.6,18.7146]
[1726808757937,3.3632,148.65,148.61,3.3638]
[1726808758440,3.3632,148.65,148.6,18.7146]
[1726808758744,18.7406,148.71,148.63,3.3635]
[1726808759131,18.7406,148.71,148.62,16.16]
[1726808759541,18.7406,148.71,148.64,3.3633]
[1726808760140,18.7406,148.71,148.62,16.16]
[1726808760540,1.03784004,148.7,148.62,16.16]
[1726808760836,3.3631,148.65,148.62,19.5237]
[1726808761438,3.3631,148.65,148.62,16.16]
[1726808761641,16.16,148.69,148.61,3.3639]
[1726808762153,3.3631,148.65,148.61,3.3639]
[1726808762546,18.7406,148.71,148.62,16.16]
[1726808762746,3.3628,148.67,148.62,16.16]
[1726808763047,18.7406,148.71,148.63,3.3633]
[1726808763235,3.3628,148.67,148.63,3.3633]
[1726808763436,18.7406,148.71,148.63,3.3633]
[1726808763643,1.03789001,148.7,148.63,3.3633]
[1726808763842,2.5806,148.71,148.64,16.16]
[1726808764444,2.5806,148.71,148.65,3.3629]
[1726808764445,3.3622,148.69,148.65,3.3629]
[1726808764642,2.5806,148.71,148.64,16.16]
[1726808764837,3.41478852,148.72,148.65,3.3629]
[1726808764838,3.3622,148.69,148.65,3.3629]
[1726808765239,3.41478852,148.72,148.64,16.16]
[1726808765448,1.03768306,148.71,148.64,16.16]
[1726808765650,3.31573192,148.71,148.64,16.16]
[1726808765849,18.7936,148.73,148.64,16.16]
[1726808766048,1.03768161,148.72,148.64,19.5232]
[1726808766249,3.38122133,148.71,148.64,16.16]
[1726808766452,6.7201,148.79,148.62,3.29341924]
[1726808766453,137.96911852,148.82,148.69,16.16]
[1726808766642,137.96911852,148.82,148.69,19.522]
[1726808766643,3.3613,148.73,148.69,19.522]
[1726808767549,3.3611,148.74,148.7,3.3619]
[1726808768049,3.3603,148.77,148.73,3.3611]
[1726808768244,16.16,148.8,148.68,5.184]
[1726808768451,1.03718776,148.79,148.71,16.16]
[1726808768646,16.16,148.78,148.69,19.5221]
[1726808768847,1.03720294,148.77,148.69,16.16]
[1726808769852,16.16,148.78,148.69,16.16]
[1726808770249,16.16,148.76,148.68,5.184]
[1726808770448,16.16,148.74,148.67,2.6376]
[1726808770644,19.50387568,148.74,148.67,2.6376]
[1726808770843,16.16,148.72,148.67,2.6376]
[1726808771348,3.32100928,148.71,148.63,16.16]
[1726808771546,3.32100928,148.71,148.63,22.0585]
[1726808772147,3.3626,148.67,148.63,22.0585]
[1726808772544,3.3624,148.68,148.64,3.3633]
[1726808775049,16.16,148.66,148.49,229.0]
[1726808775252,16.16,148.68,148.56,16.16]
[1726808775253,16.16,148.64,148.56,16.16]
[1726808775556,3.3643,148.6,148.55,8.5935]
[1726808776356,3.3643,148.6,148.56,3.3651]
[1726808776952,3.33367319,148.64,148.57,3.3648]
[1726808777359,3.33367319,148.64,148.59,3.3644]
[1726808777558,3.33367319,148.64,148.56,16.16]
[1726808777953,1.7641,148.7,148.59,16.16]
[1726808778162,17.19795835,148.69,148.59,16.16]
[1726808778360,3.3633,148.64,148.6,3.3641]
[1726808778565,16.16,148.68,148.61,2.4927]
[1726808778959,3.3637,148.62,148.61,2.4927]
[1726808780959,3.3636,148.63,148.61,2.4927]
[1726808782662,3.3633,148.64,148.61,2.4927]
[1726808783661,3.3637,148.62,148.61,2.4927]
[1726808783863,16.16,148.62,148.55,2.5771]
[1726808784258,2.5727,148.65,148.53,3.35554755]
[1726808784259,3.3651,148.57,148.53,3.35554755]
[1726808784460,3.3651,148.57,148.51,18.6011]
[1726808784659,16.16,148.6,148.53,3.3656]
[1726808784964,16.16,148.6,148.53,6.70465755]
[1726808785365,3.3648,148.58,148.54,3.3655]
[1726808785864,3.3645,148.59,148.55,3.3653]
[1726808786464,16.16,148.64,148.56,3.365]
[1726808786665,16.16,148.64,148.56,2.5483]
[1726808786966,3.3641,148.61,148.56,2.5483]
[1726808787167,2.5727,148.65,148.56,18.7083]
[1726808788563,16.16,148.64,148.56,2.5483]
[1726808788764,3.3641,148.61,148.57,3.3648]
[1726808790867,16.16,148.64,148.56,21.2873]
[1726808791063,16.16,148.64,148.57,2.5]
[1726808791364,5.87408754,148.67,148.57,2.5]
[1726808791365,16.16,148.66,148.58,16.16]
[1726808791573,3.3636,148.63,148.59,3.3643]
[1726808792266,3.3638,148.62,148.58,3.3646]
[1726808792463,16.16,148.64,148.57,2.5]
[1726808793076,3.3638,148.62,148.57,5.8646]
[1726808793261,16.16,148.64,148.57,2.5]
[1726808794167,16.16,148.66,148.57,2.5]
[1726808794370,5.87408754,148.67,148.58,16.16]
[1726808794573,5.87408754,148.67,148.61,3.3638]
[1726808794872,5.87408754,148.67,148.58,16.16]
[1726808795179,3.3634,148.64,148.6,3.3641]
[1726808795366,5.87408754,148.67,148.6,3.3641]
[1726808796872,16.16,148.64,148.57,2.5]
[1726808797473,16.16,148.64,148.57,5.8648]
[1726808798575,16.16,148.62,148.56,5.1273]
[1726808799171,3.3646,148.59,148.56,8.4924]
[1726808799473,3.3646,148.59,148.56,5.1273]
[1726808800074,16.16,148.62,148.57,3.3648]
[1726808800274,5.87408754,148.67,148.56,5.1273]
[1726808800275,16.16,148.64,148.56,5.1273]
[1726808800476,16.16,148.64,148.57,16.16]
[1726808801479,3.3639,148.62,148.58,3.3646]
[1726808801874,16.16,148.64,148.58,3.3646]
[1726808802478,3.3642,148.6,148.57,19.5249]
[1726808802679,16.16,148.6,148.53,3.33905755]
[1726808802979,16.16,148.6,148.52,2.5526]
[1726808803573,3.3651,148.56,148.53,3.3658]
[1726808803776,3.3651,148.56,148.53,6.68006901]
[1726808804286,3.3651,148.56,148.52,5.9185]
[1726808804785,3.3654,148.55,148.52,5.9185]
[1726808804986,3.3654,148.55,148.52,2.5526]
[1726808805577,16.16,148.56,148.52,2.5526]
[1726808806281,16.16,148.54,148.47,5.0437]
[1726808806480,16.16,148.54,148.33,7.03179462]
[1726808806481,16.16,148.51,148.43,2.6138]
[1726808806876,16.16,148.6,148.43,2.6138]
[1726808806877,37.57075502,148.98,148.54,20.21]
[1726808807085,2.6021,148.97,148.55,13.99576552]
[1726808807284,4.3802,148.84,148.65,16.16]
[1726808807582,16.16,148.76,148.65,19.56672592]
[1726808807978,2.6021,148.83,148.7,25.84]
[1726808808293,2.6021,148.83,148.73,25.84]
[1726808808985,2.6021,148.83,148.74,8.40731519]
[1726808809287,3.3607,148.76,148.67,16.81614361]
[1726808809489,3.3607,148.76,148.68,64.51718992]
[1726808809490,3.34387603,148.76,148.68,64.51718992]
[1726808809688,25.84,148.8,148.69,21.86104631]
[1726808809892,25.84,148.8,148.7,21.86104631]
[1726808809893,3.3611,148.74,148.7,21.86104631]
[1726808810086,3.3611,148.74,148.71,21.86104631]
[1726808810286,3.3611,148.74,148.72,8.40809473]
[1726808810485,3.3611,148.74,148.68,25.84]
[1726808810689,3.37112218,148.76,148.69,21.86145385]
[1726808810890,25.84,148.8,148.7,21.86145385]
[1726808811087,2.6021,148.83,148.71,8.40825148]
[1726808811294,25.84,148.8,148.72,8.40825148]
[1726808811489,25.84,148.8,148.68,25.84]
[1726808811791,25.84,148.8,148.69,21.86234564]
[1726808811981,25.84,148.8,148.68,25.84]
[1726808811982,3.3619,148.71,148.68,25.84]
[1726808812188,3.3619,148.71,148.7,8.40858891]
[1726808812387,3.3619,148.71,148.69,21.86232945]
[1726808812589,3.3624,148.69,148.67,2.5539]
[1726808812891,3.3624,148.69,148.68,8.40967311]
[1726808815188,3.3625,148.68,148.66,2.5158]
[1726808815395,3.3625,148.68,148.67,21.86641176]
[1726808816094,3.3625,148.68,148.67,8.41015837]
[1726808818593,3.3629,148.66,148.63,28.3939]
[1726808818896,3.3629,148.66,148.64,21.86828449]
[1726808819097,3.3629,148.66,148.65,8.41087865]
[1726808820600,3.3629,148.66,148.5,20.21]
[1726808820601,25.84,148.69,148.58,36.6295814]
[1726808820796,25.84,148.69,148.59,41.3875489]
[1726808821102,2.6211,148.68,148.59,2.687]
[1726808821395,2.6211,148.68,148.6,21.87427639]
[1726808821693,3.3635,148.64,148.61,8.41318323]
[1726808821894,5.92538657,148.68,148.62,8.41318323]
[1726808822087,2.6211,148.68,148.6,25.84]
[1726808822289,25.84,148.72,148.61,21.87297531]
[1726808822489,2.4716,148.75,148.63,25.84]
[1726808822490,28.3391,148.74,148.63,25.84]
[1726808822699,1.03782115,148.73,148.63,25.84]
[1726808823101,3.3627,148.67,148.63,29.2034]
[1726808823287,3.3627,148.67,148.63,25.84]
[1726808823493,2.4991,148.73,148.63,25.84]
[1726808823699,1.03780664,148.72,148.63,25.84]
[1726808824092,3.3629,148.66,148.63,25.84]
[1726808824696,3.3631,148.65,148.62,3.30024875]
[1726808824895,25.84,148.72,148.63,8.41250008]
[1726808825096,25.84,148.72,148.59,2.687]
[1726808825097,1.03786339,148.71,148.59,2.687]
[1726808825397,1.03786339,148.71,148.6,8.41326339]
[1726808825398,25.84,148.67,148.6,8.41326339]
[1726808825593,25.84,148.67,148.59,2.687]
[1726808825792,2.5085,148.66,148.6,8.41413378]
[1726808825992,3.364,148.61,148.59,2.687]
[1726808826289,3.364,148.61,148.6,8.41430303]
[1726808826497,3.364,148.61,148.59,2.687]
[1726808826692,3.3013725,148.65,148.59,2.687]
[1726808826693,3.3637,148.63,148.59,2.687]
[1726808826898,3.3013725,148.65,148.59,2.687]
[1726808827097,2.5085,148.66,148.6,8.41432437]
[1726808827301,2.5085,148.66,148.59,2.687]
[1726808827500,5.88233788,148.66,148.6,8.41413114]
[1726808827797,3.3637,148.63,148.59,2.687]
[1726808827995,3.3637,148.63,148.6,8.41380053]
[1726808828302,2.5085,148.66,148.61,8.41380053]
[1726808828303,5.82444681,148.66,148.61,8.41380053]
[1726808828496,3.3636,148.63,148.59,2.687]
[1726808828701,3.3636,148.63,148.6,8.41370727]
[1726808828897,3.3636,148.63,148.61,8.41370727]
[1726808829098,3.3636,148.63,148.59,2.687]
[1726808829293,3.3636,148.63,148.6,8.41370845]
[1726808829497,3.3636,148.63,148.61,8.41370845]
[1726808829694,3.3636,148.63,148.59,6.0514]
[1726808829894,3.3636,148.63,148.6,8.41361321]
[1726808830097,3.3636,148.63,148.59,6.0514]
[1726808830296,3.3636,148.63,148.6,8.41361321]
[1726808830499,3.3636,148.63,148.59,6.0514]
[1726808830798,3.3636,148.63,148.6,8.41380212]
[1726808830996,3.3636,148.63,148.59,6.0514]
[1726808831302,5.82444681,148.66,148.6,8.41380212]
[1726808831303,3.3637,148.62,148.6,8.41380212]
[1726808831503,3.3637,148.62,148.59,6.0514]
[1726808831702,3.3637,148.62,148.6,8.41380212]
[1726808831903,3.3637,148.62,148.59,6.0514]
[1726808832103,3.3637,148.62,148.6,8.41379546]
[1726808832297,3.3637,148.62,148.59,2.687]
[1726808832602,3.3637,148.62,148.6,8.41379546]
[1726808832802,3.3637,148.62,148.59,2.687]
[1726808833004,3.3637,148.62,148.6,8.41379705]
[1726808833302,3.3637,148.62,148.59,2.687]
[1726808833502,3.3637,148.62,148.6,8.4138037]
[1726808833692,3.3637,148.62,148.59,2.687]
[1726808833891,16.16,148.65,148.59,2.687]
[1726808834093,16.16,148.65,148.55,2.6891]
[1726808834094,16.16,148.65,148.6,8.4138037]
[1726808834397,18.7515,148.65,148.55,21.2983]
[1726808834598,3.3644,148.6,148.56,21.87994024]
[1726808834905,18.7515,148.65,148.57,8.41536163]
[1726808835106,3.3644,148.59,148.58,8.41536163]
[1726808836003,16.16,148.63,148.55,21.2983]
[1726808836004,2.5915,148.65,148.55,2.4492]
[1726808836193,16.16,148.62,148.56,8.4163372]
[1726808836394,16.16,148.62,148.55,2.4492]
[1726808836605,16.16,148.62,148.56,8.41633717]
[1726808836905,3.3644,148.6,148.57,24.57588503]
[1726808837101,18.7515,148.65,148.57,16.16]
[1726808837906,28.4415,148.65,148.55,5.8144]
[1726808838208,25.85,148.63,148.56,21.88078178]
[1726808838408,3.3651,148.56,148.55,2.4492]
[1726808838608,3.3651,148.56,148.55,24.33158715]
[1726808838909,3.3651,148.56,148.55,8.41630275]
[1726808839307,3.3649,148.57,148.55,8.41630275]
[1726808839501,3.3649,148.57,148.56,8.41630275]
[1726808840403,25.85,148.61,148.5,2.5492]
[1726808840704,2.647,148.6,148.51,38.72183998]
[1726808840904,3.3658,148.54,148.52,21.88625738]
[1726808841109,3.3658,148.54,148.53,8.4177913]
[1726808844213,3.3658,148.54,148.5,5.9156]
[1726808844410,3.3658,148.53,148.51,21.88634215]
[1726808844610,3.3658,148.53,148.52,21.88634215]
[1726808845411,3.3658,148.53,148.52,8.4178239]
[1726808845610,3.3658,148.53,148.5,5.9156]
[1726808845812,3.3656,148.54,148.51,8.41840319]
[1726808846011,3.3656,148.54,148.52,8.41840319]
[1726808846219,3.3656,148.54,148.5,5.9156]
[1726808846410,3.3658,148.53,148.51,8.41863361]
[1726808846607,25.85,148.58,148.52,8.41863361]
[1726808846815,29.1359806,148.58,148.5,2.5492]
[1726808847013,29.1359806,148.58,148.51,8.41869191]
[1726808847315,29.1359806,148.58,148.5,2.5492]
[1726808847512,29.1359806,148.58,148.51,8.41869191]
[1726808847708,25.85,148.56,148.47,3.3671]
[1726808847913,25.85,148.56,148.44,25.85]
[1726808847914,25.85,148.56,148.48,21.89147197]
[1726808848210,25.85,148.56,148.45,3.3674]
[1726808848420,29.28580246,148.56,148.46,21.89264366]
[1726808848620,29.28580246,148.56,148.47,21.89264366]
[1726808848818,29.28580246,148.56,148.45,3.3674]
[1726808849020,29.28580246,148.56,148.46,11.27982844]
[1726808849219,3.3667,148.49,148.46,3.3673]
[1726808849714,29.28580246,148.56,148.47,3.3671]
[1726808850719,3.3664,148.51,148.47,3.3671]
[1726808852420,3.3665,148.5,148.47,3.3671]
[1726808853419,3.3665,148.5,148.46,3.3673]
[1726808855726,3.3667,148.49,148.46,3.3673]
[1726808856323,3.3671,148.47,148.41,7.7635]
[1726808856621,3.3671,148.47,148.42,20.59577499]
[1726808856819,3.3671,148.47,148.43,20.59577499]
[1726808857124,3.3671,148.47,148.44,11.28925192]
[1726808857326,3.3671,148.47,148.41,7.7635]
[1726808857529,3.3674,148.46,148.42,20.60241929]
[1726808857825,3.3674,148.46,148.43,7.92400742]
[1726808858028,3.39104783,148.5,148.41,7.7635]
[1726808858225,3.39104783,148.5,148.42,7.92601741]
[1726808858226,2.51,148.5,148.42,7.92601741]
[1726808858426,2.51,148.5,148.43,7.92601741]
[1726808858728,2.51,148.5,148.42,3.3682]
[1726808859021,3.29606616,148.49,148.43,7.92608087]
[1726808859222,3.3676,148.46,148.42,3.3682]
[1726808859625,3.3669,148.48,148.41,7.7635]
[1726808859929,2.51,148.5,148.43,16.16]
[1726808860322,3.3673,148.47,148.43,16.16]
[1726808861432,3.367,148.48,148.43,16.16]
[1726808862223,16.16,148.54,148.45,16.16]
[1726808862426,3.37118357,148.53,148.45,16.16]
[1726808864034,3.3667,148.5,148.46,3.3673]
[1726808866535,3.37118357,148.53,148.45,16.16]
[1726808866536,3.3663,148.51,148.45,16.16]
[1726808866736,16.16,148.55,148.47,16.16]
[1726808866943,16.16,148.55,148.47,19.47054345]
[1726808867131,16.16,148.55,148.49,3.3665]
[1726808867132,3.3659,148.53,148.49,3.3665]
[1726808867435,16.16,148.55,148.47,16.16]
[1726808867633,3.31391193,148.56,148.49,16.16]
[1726808867834,16.16,148.57,148.49,16.16]
[1726808868139,2.6053,148.58,148.51,16.16]
[1726808868634,2.6053,148.58,148.53,3.3655]
[1726808868839,2.6053,148.58,148.51,16.16]
[1726808869732,3.3651,148.57,148.52,3.366]
[1726808870736,2.6053,148.58,148.49,7.47640382]
[1726808870929,16.16,148.54,148.49,7.47640382]
[1726808871129,16.16,148.52,148.49,7.47640382]
[1726808871328,5.96501316,148.58,148.49,7.47640382]
[1726808871329,19.5264,148.5,148.49,7.47640382]
[1726808871934,3.3664,148.5,148.49,7.47640382]
[1726808878744,25.87,148.51,148.45,3.3676]
[1726808879242,3.3668,148.49,148.45,3.3676]
[1726808880336,3.3669,148.48,148.45,3.3676]
[1726808880537,3.3669,148.48,148.42,3.34018581]
[1726808880538,28.5018,148.53,148.42,29.21018581]
[1726808880738,28.5018,148.53,148.43,5.1599]
[1726808880940,3.3664,148.51,148.47,3.367]
[1726808881249,28.5018,148.53,148.47,3.367]
[1726808881643,25.87,148.56,148.44,3.3801607]
[1726808881845,25.87,148.58,148.46,25.87]